Workbook

Sheet Товар
A1: Подрядчик | B1: Наличие | C1: Категория 1 | D1: Категория 2 | E1: Наименование продукта | F1: Цена за единицу без скидок | G1: Цена за ед со скидками | H1: Кол-во | I1: Итого цена | J1: Накрутка | K1: Цена за ед с наценкой | L1: Куплено | M1: Итого цена с наценкой | N1: Итого чистыми | O1: Столбец1 | P1: Артикул | Q1: Примечание
B2: Да | C2: Гаджеты | D2: Колонки и MP3 плееры | E2: Водонепроницаемая Беспроводная Bluetooth Колонка Для Душа Bathbeats (BATHBEATS) | F2: 509.22 | G2: =IFERROR(VLOOKUP(Таблица1[[#This Row],[Артикул]],$S$2:$T$4,2,0),F2) -> 509.22 | H2: 1 | I2: =G2*H2 -> 509.22 | J2: =K2*1/G2-1 -> 0.7654451907 | K2: 899 | L2: =Таблица1[[#This Row],[Кол-во]] -> 1 | M2: =L2*K2 -> 899 | N2: =IF(M2=0,0,M2-I2) -> 389.78 | P2: GA1:00
B3: Да | C3: Гаджеты | D3: Гаджеты | E3: Наушники вакуумные светящиеся Glow | F3: 499 | G3: =IFERROR(VLOOKUP(Таблица1[[#This Row],[Артикул]],$S$2:$T$4,2,0),F3) -> 499 | H3: 0 | I3: =G3*H3 -> 0 | J3: 0.7334669339 | K3: 865 | L3: =Таблица1[[#This Row],[Кол-во]] -> 0 | M3: =L3*K3 -> 0 | N3: 0 | P3: GC2:10
B4: Да | C4: Гаджеты | D4: Портативные зарядные устройства (Power Bank) | E4: Внешний Аккумулятор Remax Lipmax 2400 Mah (Черно-Красный) | F4: 478 | G4: =IFERROR(VLOOKUP(Таблица1[[#This Row],[Артикул]],$S$2:$T$4,2,0),F4) -> 478 | H4: 1 | I4: =G4*H4 -> 478 | J4: 0.8828451883 | K4: 900 | L4: =Таблица1[[#This Row],[Кол-во]] -> 1 | M4: =L4*K4 -> 900 | N4: 422 | P4: GB3:20
A5: Итог | F5: =SUBTOTAL(109,[Цена за единицу без скидок]) -> 1486.22 | G5: =SUBTOTAL(109,[Цена за ед со скидками]) -> 1486.22 | H5: =SUBTOTAL(109,[Кол-во]) -> 2 | I5: =SUBTOTAL(109,[Итого цена]) -> 987.22 | L5: =SUBTOTAL(109,[Куплено]) -> 2 | M5: =SUBTOTAL(109,[Итого цена с наценкой]) -> 1799 | N5: =SUBTOTAL(109,[Итого чистыми]) -> 811.78

Sheet Продано
A1: Наименование продукта | B1: Закупка | C1: Цена | D1: Куплено | E1: Доп Скидка | F1: Итого цена | G1: Итого чистыми | H1: Артикул | I1: Дата продажи
A2: Водонепроницаемая Беспроводная Bluetooth Колонка Для Душа Bathbeats (BATHBEATS) | B2: 479.22 | C2: 900 | D2: 1 | E2: 0.1 | F2: =IF(E2>0,(C2-(C2*E2))*D2,D2*C2) -> 810 | G2: =F2-(B2*D2) -> 330.78 | H2: G08:A | I2: 42624
A3: Наушники вакуумные светящиеся Glow | B3: 489.02 | C3: 865 | D3: 1 | E3: 0 | F3: =IF(E3>0,C3-(C3*E3),D3*C3) -> 865 | G3: 375.98 | H3: G14:BB | I3: 42624
A4: Внешний Аккумулятор Rockbox Hybrid 1200 Mah (Голуб | B4: 184.24 | C4: 396 | D4: 1 | E4: 0 | F4: =IF(E4>0,C4-(C4*E4),D4*C4) -> 396 | G4: =F4-(B4*D4) -> 211.76 | H4: G05:RS | I4: 42624
B6: 479.22 | C6: 899 | D6: 1 | E6: =10/100 -> 0.1 | F6: =C6-(E6*C6) -> 809.1 | G6: =F6-(B6*D6) -> 329.88
E7: =E6 -> 0.1
